{"text_format":"1","workbook":"xlsx","n_sheets":4,"sheets":["サービス申込書","HP利用","マスタ","MUST"],"not_rendered":{"charts":0,"images":0,"macros":1,"external_links":3,"defined_names":23,"comments":1,"pivot_tables":0},"unopened":[],"bounds":{"document_bytes":16777216,"sheet_cells":100000,"rows_first":2000,"rows_last":500,"rows_between":2000,"halvings":0,"cell_chars":16384,"cell_head_chars":4096},"cells_cut":0,"cells_raw":0,"read":"whole","date_system":"1900"}

{"sheet":"サービス申込書","index":0,"n_rows":144,"n_cols":33,"rows_kept":144,"cut":false,"hidden":false,"merged":[[11,1,16,4],[14,9,14,12],[14,24,14,32],[15,24,15,32],[16,24,16,32],[3,1,3,7],[3,8,3,32],[5,24,5,25],[5,27,5,28],[5,30,5,31],[7,1,8,32],[15,5,15,7],[15,8,15,20],[16,8,16,20],[16,5,16,7],[14,5,14,7],[12,5,13,32],[11,5,11,32],[26,5,26,8],[26,9,26,12],[27,1,27,4],[27,6,27,8],[27,15,27,17],[17,1,18,4],[17,5,18,32],[19,1,21,4],[20,5,21,11],[22,1,26,4],[23,16,23,18],[20,12,21,14],[20,15,21,32],[19,12,19,14],[24,16,24,18],[23,6,25,6],[24,9,25,9],[22,5,25,5],[23,7,25,8],[22,7,22,8],[19,15,19,32],[22,24,26,24],[26,28,26,32],[58,1,58,6],[58,15,58,32],[59,5,60,7],[59,8,60,20],[59,24,59,32],[60,21,61,23],[60,24,61,32],[61,8,61,20],[29,1,30,4],[31,1,42,4],[34,7,34,32],[35,7,35,32],[32,7,32,32],[49,5,49,19],[49,20,49,32],[51,6,51,18],[51,21,51,31],[43,1,43,32],[44,1,44,32],[46,1,55,4],[52,6,52,18],[53,7,53,17],[62,9,62,12],[62,24,62,32],[63,24,63,32],[64,24,64,32],[65,1,65,6],[65,15,65,32],[63,5,63,7],[63,8,63,20],[64,5,64,7],[64,8,64,20],[71,5,71,7],[71,8,71,20],[78,5,78,7],[78,8,78,20],[79,5,79,7],[79,8,79,20],[66,5,67,7],[66,8,67,20],[66,24,66,32],[67,21,68,23],[67,24,68,32],[68,8,68,20],[95,5,96,7],[95,8,96,20],[88,5,89,7],[93,5,93,7],[95,24,95,32],[96,21,97,23],[96,24,97,32],[97,8,97,20],[88,24,88,32],[89,21,90,23],[89,24,90,32],[90,8,90,20],[91,24,91,32],[92,24,92,32],[93,24,93,32],[91,9,91,12],[88,8,89,20],[93,8,93,20],[92,5,92,7],[92,8,92,20],[81,1,82,6],[82,27,82,32],[84,1,84,6],[85,1,85,6],[87,1,87,6],[69,9,69,12],[69,24,69,32],[70,24,70,32],[71,24,71,32],[72,1,73,6],[72,15,73,32],[74,5,75,7],[74,8,75,20],[74,24,74,32],[75,21,76,23],[75,24,76,32],[76,1,79,4],[76,8,76,20],[77,9,77,12],[77,24,77,32],[78,24,78,32],[79,24,79,32],[70,5,70,7],[70,8,70,20]]}
[{"$f":"IF(F18=\"\",\"\",\"申込書＿\"&F18)","v":""}]
[]
[]
[null,"贈与税",null,null,null,null,null,null,"贈与税の非課税措置にかかわる証明書等発行　サービス申込書"]
[]
[null,null,null,null,null,null,null,null,null,null,null,null,null,null,null,null,null,null,null,"  申込日（西暦）",null,null,null,20,null,null,"年",null,null,"月",null,null,"日"]
[]
[null,"　贈与税の非課税措置にかかわる証明書等発行のための適合審査を申請します。この申請書および添付図書に記載の事項は、事実に相違ありません。"]
[]
[]
[null,"● 申込の種類及び申請建築物の概要など",null,null,null,null,null,null,null,null,"※空欄に記入し、あてはまる項目の□にチェックを入れて下さい。"]
[null,"依頼者",null,null,null," 氏名又は名称"]
[]
[]
[null,null,null,null,null," 住所",null,null,"〒",null,null,null,null,null,null,null,null,null,null,null,null," TEL"]
[null,null,null,null,null,"都道府県",null,null,"都道府県以降",null,null,null,null,null,null,null,null,null,null,null,null," FAX"]
[null,null,null,null,null,null,null,null,null,null,null,null,null,null,null,null,null,null,null,null,null," E-mail"]
[null,"住宅名称"]
[]
[null,"住宅の概要\n登記簿に記載される\n家屋番号･所在地",null,null,null," 家屋番号（後日通知も可）",null,null,null,null,null,null," 所在地",null,null,"所在地（都道府県以降）"]
[]
[]
[null,"建物種類",null,null,null,"建物\n種別","□","戸建住宅",null,null,"（","□","店舗等併用住宅の住戸部分／料金上のみ戸建　）",null,null,null,null,null,null,null,null,null,null,null,"構造","□","木造軸組"]
[null,null,null,null,null,null,{"$f":"IF(OR(J24=\"■\",J25=\"■\"),\"■\",\"□\")","v":"□"},"共同\n住宅等",null,"□","一戸申請",null,null,"住宅番号 　（",null,null,null,null,null,"）",null,null,null,null,null,"□","木造枠組"]
[null,null,null,null,null,null,null,null,null,"□","一括申請",null,null,"依頼住戸数（",null,null,null,null,null,"）",null,null,null,null,null,"□","鉄筋コンクリート造"]
[null,null,null,null,null,null,null,null,null,null,null,null,null,"住宅番号は一括依頼住宅番号整理表による",null,null,null,null,null,null,null,null,null,null,null,"□","鉄骨造"]
[null,null,null,null,null," 延べ面積",null,null,null,null,null,null,null,"㎡","家屋要件の住宅の床面積の制限にご注意下さい",null,null,null,null,null,null,null,null,null,null,"□","その他"]
[null,"申請種別",null,null,null,"□","新規",null,null,null,null,null,null,null,"□","変更"]
[null," 非課税措置種別",null,null,null,"□","措法等による贈与税非課税措置",null,null,null,null,null,null,null,"□","震災特例法等による被災受贈者に係る贈与税非課税措置"]
[null," 住宅用家屋の区分（いずれか）",null,null,null,"□","住宅の新築",null,null,null,null,null,null,null,"□","既存住宅の取得（ハウスプラスで建設住宅性能評価書を取得済の場合に限る）"]
[null,null,null,null,null,"□","新築住宅の取得"]
[null,"非課税限度額\n加算の対象基準\n（いずれか）※1\n\n\n",null,null,null,"省エネ性能"]
[null,null,null,null,null,null,"□","令和６年1月1日以降に建築基準法第６条第１項の規定による確認を受けている場合\n又は 令和６年７月１日以降に建築されたものである場合"]
[null,null,null,null,null,null,null,{"$f":"IF(G33=\"□\",\"□\",\"■\")","v":"□"},"（新基準）5-1 断熱等性能等級５以上（結露基準を除く） かつ　5-2一次エネルギー消費量等級６以上"]
[null,null,null,null,null,null,"□","既存住宅の取得　もしくは　令和５年12月31日以前に建築基準法第６条第１項の規定による確認を受けている場合\n又は 令和６年６月30日以前に建築されたものである場合（下記いずれか選択）"]
[null,null,null,null,null,null,null,"　注：上記要件に該当することを確認するため、本申請時に確認済証又は検査済証の提出が必要です。※2\n　 　　令和６年６月30日以前に建築されたことが確認できる場合は登記事項証明書も可。"]
[null,null,null,null,null,null,null,"□","（旧基準）5-1 断熱等性能等級４（結露基準を含む）以上"]
[null,null,null,null,null,null,null,"□","（旧基準）5-2 一次エネルギー消費量等級４以上"]
[null,null,null,null,null,"耐震性"]
[null,null,null,null,null,null,"□","1-1 耐震対策（倒壊等防止）等級２以上"]
[null,null,null,null,null,null,"□","1-3 その他（地震に対する構造躯体の倒壊等防止及び損傷防止）（免震建築物）"]
[null,null,null,null,null,"バリアフリー"]
[null,null,null,null,null,null,"□","9-1 高齢者等配慮対策等級（専有部分）３以上"]
[null,"※1 既存住宅の取得の場合は、評価方法基準の評価基準（既存住宅）に適合する必要があります。（劣化事象等がないことの確認が必要です。）"]
[null,"※2 確認不要地域の場合は、令和６年６月30日以前に建築されたことが確認できる登記事項証明書の提出が必要です。"]
[]
[null,"他サービスの\n活用による\n申請の有無",null,null,null," ハウスプラスへの他のサービスの活用についてチェックをお願いします。選択がない場合は「申込みなし」として進めさせていただきます。"]
[null,null,null,null,null," 注：活用するサービスの評価書等で下記基準に適合することが確認できる必要があります。"]
[]
[null,null,null,null,null,"活用するサービス等（瑕疵保険以外）",null,null,null,null,null,null,null,null,null,null,null,null,null,null,"活用サービスで確認する基準\n※活用するサービス等を選択するとこちらが選択できます"]
[]
[]
[null,null,null,null,null,null,"・その他の場合はサービス名を記載"]
[null,null,null,null,null,null,"（",null,null,null,null,null,null,null,null,null,null,null,"）"]
[]
[null,null,null,null,null,null,"□","ハウスプラスすまい保険（新築瑕疵保険）の申込あり（対象基準が耐震性の場合活用が可能です）"]
[]
[null,"● 申込担当者・その他連絡先の記入をお願いします"]
[null,"　申込担当者",null,null,null,null,null,null,"□","依頼者と同じ",null,null,null,null,null,"　当社業務約款に基づく【引受承諾書】並びに設計審査が完了した際に\n 【設計審査完了通知】を申込担当者様宛に送付いたします。"]
[null,null,null,null,null," 会社名",null,null,null,null,null,null,null,null,null,null,null,null,null,null,null," フリガナ"]
[null,null,null,null,null,null,null,null,null,null,null,null,null,null,null,null,null,null,null,null,null," 氏名"]
[null,null,null,null,null," 所属・役職"]
[null,null,null,null,null," 住所",null,null,"〒",null,null,null,null,null,null,null,null,null,null,null,null," TEL"]
[null,null,null,null,null,"都道府県",null,null,"都道府県以降",null,null,null,null,null,null,null,null,null,null,null,null," FAX"]
[null,null,null,null,null,null,null,null,null,null,null,null,null,null,null,null,null,null,null,null,null," E-mail"]
[null,"　質疑送付先",null,null,null,null,null,null,"□","申込担当者と同じ",null,null,null,null,null,"　申請図書の設計審査の内容について、実際ご担当となる方を記入してください。\n　こちらの記入されている方に審査に関する質疑書を送付いたします。"]
[null,null,null,null,null," 会社名",null,null,null,null,null,null,null,null,null,null,null,null,null,null,null," フリガナ"]
[null,null,null,null,null,null,null,null,null,null,null,null,null,null,null,null,null,null,null,null,null," 氏名"]
[null,null,null,null,null," 所属・役職"]
[null,null,null,null,null," 住所",null,null,"〒",null,null,null,null,null,null,null,null,null,null,null,null," TEL"]
[null,null,null,null,null,"都道府県",null,null,"都道府県以降",null,null,null,null,null,null,null,null,null,null,null,null," FAX"]
[null,null,null,null,null,null,null,null,null,null,null,null,null,null,null,null,null,null,null,null,null," E-mail"]
[null,"　現場担当者連絡先",null,null,null,null,null,null,"□","申込担当者と同じ",null,null,null,null,null,"　現場審査において、日程調整や現場立ち合い等実際に担当される方を記入してください。\n　こちらの記入されている方に現場審査についてのご連絡をさせていただきます。"]
[null,null,null,null,null,null,null,null,"□","質疑送付先と同じ"]
[null,null,null,null,null," 会社名",null,null,null,null,null,null,null,null,null,null,null,null,null,null,null," フリガナ"]
[null,null,null,null,null,null,null,null,null,null,null,null,null,null,null,null,null,null,null,null,null," 氏名"]
[null," ※日程調整のため\n 　 携帯電話は必須\n　　記載項目となります",null,null,null," 所属・役職"]
[null,null,null,null,null," 住所",null,null,"〒",null,null,null,null,null,null,null,null,null,null,null,null," TEL"]
[null,null,null,null,null,"都道府県",null,null,"都道府県以降",null,null,null,null,null,null,null,null,null,null,null,null," FAX"]
[null,null,null,null,null,null,null,null,null,null,null,null,null,null,null,null,null,null,null,null,null,"携帯電話 ※"]
[]
[null,"　証明書等の送付先",null,null,null,null,null,null,"内容確認後に申請者が受領しますので下記宛にお送りください"]
[null,null,null,null,null,null,null,null,"□","依頼者と同じ",null,null,null,null,null,"□","申込担当者と同じ",null,null,null,null,null,"□","その他連絡先"]
[]
[null,"　請求書の送付先",null,null,null,null,null,null,"□","依頼者と同じ",null,null,null,null,null,"□","申込担当者と同じ",null,null,null,null,null,"□","請求書の送付先参照"]
[null,"　請求書の宛名",null,null,null,null,null,null,"□","依頼者と同じ",null,null,null,null,null,"□","申込担当者と同じ",null,null,null,null,null,"□","請求書の宛名参照"]
[]
[null,"　請求書の送付先"]
[null,"※",null,null,null," 会社名",null,null,null,null,null,null,null,null,null,null,null,null,null,null,null," フリガナ"]
[null,"証明申請者、",null,null,null,null,null,null,null,null,null,null,null,null,null,null,null,null,null,null,null," 氏名"]
[null,"申込担当者と",null,null,null," 所属・役職"]
[null,"異なる場合は明記",null,null,null," 住所",null,null,"〒",null,null,null,null,null,null,null,null,null,null,null,null," TEL"]
[null,null,null,null,null,"都道府県",null,null,"都道府県以降",null,null,null,null,null,null,null,null,null,null,null,null," FAX"]
[null,null,null,null,null,null,null,null,null,null,null,null,null,null,null,null,null,null,null,null,null," E-mail"]
[null,"　請求書の宛名"]
[null,"※",null,null,null,"会社名",null,null,null,null,null,null,null,null,null,null,null,null,null,null,null," フリガナ"]
[null,"請求書送付先と",null,null,null,null,null,null,null,null,null,null,null,null,null,null,null,null,null,null,null," 氏名"]
[null,"異なる場合は明記",null,null,null,"所属・役職"]
[]
[]
[null,"注意事項",null,null,null,"必ずご確認をお願いいたします"]
[]
[null,"申請前に、国税庁ホームページ（No.4508 直系尊属から住宅取得等資金の贈与を受けた場合の非課税）及び　国土交通省ホームページ"]
[null,"（住宅取得等資金に係る贈与税の非課税措置）にて、非課税の対象となる受贈者の要件 及び 住宅性能証明審査を申請する家屋が非課税の"]
[null,"対象となる家屋の要件 を満たすことを必ずご確認ください。　　"]
[]
[null,"【　参考情報　】"]
[null,"・　国税庁"]
[null,"　No.4508 直系尊属から住宅取得等資金の贈与を受けた場合の非課税"]
[null,"（https://www.nta.go.jp/taxes/shiraberu/taxanswer/sozoku/4508.htm）"]
[null,"・　国土交通省"]
[null,"　住宅取得等資金に係る贈与税の非課税措置"]
[null,"　（https://www.mlit.go.jp/jutakukentiku/house/jutakukentiku_house_tk2_000018.html）"]
[]
[]
[null,"● 住宅用家屋の区分及びハウスプラスへ申請する場合の留意事項"]
[null,null,"2016年5月時点において、「住宅の新築」並びに「新築住宅の取得」を除き、"]
[null,null,"ハウスプラスがお申込みをお受けできる住宅に制限を設けさせていただいております。"]
[null,null,"（詳細は別途お問い合わせください）"]
[null,null,"ご不便をお掛けしますが、予めご了承ください。"]
[null,"▼ 住宅の新築"]
[null,null,"住宅用家屋の新築をし､取得する場合。"]
[null,null,"受贈者が住宅用の家屋の新築をしている状況のものを指します"]
[null,null,"ハウスプラスが設定する現場審査のタイミングにおいて、"]
[null,null,"検査ができない場合は、「新築住宅の取得」扱いとなります"]
[null,"▼ 新築住宅の取得"]
[null,null,"建築後使用されたことのない住宅の家屋の取得場合。"]
[null,null,"すでに竣工されている住宅となりますので、設計審査での指摘や"]
[null,null,"不備において、実際の物件の仕様も訂正内容であることが求められることや、"]
[null,null,"施工中の状況写真等が現場審査で提示･提出できる必要があります"]
[null,null,"設計審査時の指摘や不備の訂正が、実際の現場で確認できない場合、"]
[null,null,"基準への適合とみなせない場合があります。ご了承下さい。"]
[null,"▼ 既存住宅の取得"]
[null,null,"受贈者が建築後使用されたことのある住宅用の家屋の取得する場合。"]
[null,null,"すでに使用されたことがある住宅となりますので、図面と既存住宅の整合性が"]
[null,null,"求められること、設計審査での指摘や不備において、実際の物件の仕様も"]
[null,null,"訂正内容であることが求められること、施工段階の状況写真等が現場審査で"]
[null,null,"提示･提出できる必要があります"]
[null,null,"設計審査時の指摘や不備の訂正が、実際の現場で確認できない場合、"]
[null,null,"基準への適合とみなせない場合があります。ご了承下さい。"]
[null,"▼ 住宅の増改築等"]
[null,null,"受贈者が住宅用の家屋について増改築等する場合。"]
[null,null,"ハウスプラスが設定する現場審査のタイミングにおいて、検査ができる必要性が"]
[null,null,"あります"]

{"sheet":"HP利用","index":1,"n_rows":12,"n_cols":82,"rows_kept":12,"cut":false,"hidden":true,"merged":[[1,17,1,23],[1,34,1,43],[1,44,1,53],[1,24,1,33]]}
["｜ハウスプラス利用欄｜"]
[" サービス申込書",null,null,null,null,null,null,null,null,null,null,null,null,null,null,null,null,"依頼者",null,null,null,null,null,null,"申込担当者",null,null,null,null,null,null,null,null,null,"質疑送付者",null,null,null,null,null,null,null,null,null,"現場担当者"]
["ID","受付番号","住宅名称","家屋番号","所在地_都道府県","所在地_住所","建物種類","構造","構造_その他記述","非課税措置種別","申請種別","住宅用家屋区分","対象基準","他サ　保険","他サ　設計性能","他サ　その他","他サ　その他記述","依頼者_氏名名称","依頼者_郵便番号","依頼者_都道府県","依頼者_住所","依頼者_TEL","依頼者_FAX","依頼者_MAIL","申込担当者_フラグ","申込担当者_会社名","申込担当者_所属役職","申込担当者_氏名","申込担当者_郵便番号","申込担当者_都道府県","申込担当者_住所","申込担当者_TEL","申込担当者_FAX","申込担当者_MAIL","質疑送付先_フラグ","質疑送付先_会社名","質疑送付先_所属役職","質疑送付先_氏名","質疑送付先_郵便番号","質疑送付先_都道府県","質疑送付先_住所","質疑送付先_TEL","質疑送付先_FAX","質疑送付先_MAIL","現場担当者_フラグ","現場担当者_会社名","現場担当者_所属役職","現場担当者_氏名名称","現場担当者_郵便番号","現場担当者_都道府県","現場担当者_住所","現場担当者_TEL","現場担当者_FAX","現場担当者_携帯電話","証明書等の送付先","請求書の送付先","請求書の宛名","受取日","受付日","引受承諾書発行日","引受承諾書発送日","設計審査委託先","設計審査委託日","設計審査受領日","設計審査確認日","設計審査検収日","現場審査委託先","現場審査委託日","現場審査受領日","現場審査確認日","現場審査検収日","証明書発行日","証明書発送日","証明書建築士","不適合通知_番号","不適合通知_発行日","登記変更フラグ","証明書発行時変更フラグ","延べ面積","店舗併用戸建フラグ","住宅番号","依頼住戸数"]
[]
[" ",null,{"$f":"IF(サービス申込書!F18=\"\",\"\",サービス申込書!F18)","v":""},{"$f":"IF(サービス申込書!F21=\"\",\"\",サービス申込書!F21)","v":""},{"$f":"IF(サービス申込書!M21=\"\",\"\",サービス申込書!M21)","v":""},{"$f":"IF(サービス申込書!P21=\"\",\"\",サービス申込書!P21)","v":""},{"$f":"IF(サービス申込書!G23=\"■\",\"戸建住宅\",IF(サービス申込書!J24=\"■\",\"共同住宅等（一戸）\",IF(サービス申込書!J25=\"■\",\"共同住宅等（一括）\",\"\")))","v":""},{"$f":"IF(サービス申込書!Z23=\"■\",\"木造軸組\",IF(サービス申込書!Z24=\"■\",\"木造枠組\",IF(サービス申込書!Z25=\"■\",\"鉄筋コンクリート造\",IF(サービス申込書!Z26=\"■\",\"鉄骨造\",IF(サービス申込書!Z27=\"■\",\"その他\",\"\")))))","v":""},{"$f":"IF(サービス申込書!Z27=\"□\",\"\",サービス申込書!AC27)&\"\"","v":""},{"$f":"IF(サービス申込書!F29=\"■\",\"1\",IF(サービス申込書!O29=\"■\",\"2\",\"\"))","v":""},{"$f":"IF(サービス申込書!F28=\"■\",\"1\",IF(サービス申込書!O28=\"■\",\"2\",\"\"))","v":""},{"$f":"IF(サービス申込書!F30=\"■\",\"1\",IF(サービス申込書!F31=\"■\",\"2\",IF(サービス申込書!O30=\"■\",\"3\",\"\")))","v":""},{"$f":"IF(サービス申込書!H34=\"■\",\"11\",IF(サービス申込書!H37=\"■\",\"1\",IF(サービス申込書!H38=\"■\",\"6\",IF(サービス申込書!G40=\"■\",\"2\",IF(サービス申込書!G41=\"■\",\"4\",IF(サービス申込書!G43=\"■\",\"8\",\"\"))))))","v":""},{"$f":"IF(サービス申込書!G56=\"■\",\"2\",IF(サービス申込書!G56=\"□\",\"3\",\"\"))","v":"3"},{"$f":"IF(サービス申込書!G52=\"設計住宅性能評価\",\"2\",\"3\")","v":"3"},{"$f":"IF(OR(サービス申込書!G52=\"建築物省エネルギー性能表示制度_BELS評価\",サービス申込書!G52=\"建設住宅性能評価＿【既存住宅の取得】の場合\",サービス申込書!G52=\"その他\"),\"2\",\"3\")","v":"3"},{"$f":"IF(サービス申込書!G52=\"建築物省エネルギー性能表示制度_BELS評価\",\"BELS\",IF(サービス申込書!G52=\"建設住宅性能評価＿【既存住宅の取得】の場合\",\"建設評価\",IF(サービス申込書!G52=\"その他\",サービス申込書!H54,\"\")))","v":""},{"$f":"IF(サービス申込書!F13=\"\",\"\",サービス申込書!F13)","v":""},{"$f":"IF(サービス申込書!J15=\"\",\"\",サービス申込書!J15)","v":""},{"$f":"IF(サービス申込書!F17=\"\",\"\",サービス申込書!F17)","v":""},{"$f":"IF(サービス申込書!I17=\"\",\"\",サービス申込書!I17)","v":""},{"$f":"IF(サービス申込書!Y15=\"\",\"\",サービス申込書!Y15)","v":""},{"$f":"IF(サービス申込書!Y16=\"\",\"\",サービス申込書!Y16)","v":""},{"$f":"IF(サービス申込書!Y17=\"\",\"\",サービス申込書!Y17)","v":""},{"$f":"IF(サービス申込書!I59=\"■\",\"1\",IF(サービス申込書!I59=\"□\",\"2\",\"\"))","v":"2"},{"$f":"IF(サービス申込書!I60=\"\",\"\",サービス申込書!I60)","v":""},{"$f":"IF(サービス申込書!I62=\"\",\"\",サービス申込書!I62)","v":""},{"$f":"IF(サービス申込書!Y61=\"\",\"\",サービス申込書!Y61)","v":""},{"$f":"IF(サービス申込書!J63=\"\",\"\",サービス申込書!J63)","v":""},{"$f":"IF(サービス申込書!F65=\"\",\"\",サービス申込書!F65)","v":""},{"$f":"IF(サービス申込書!I65=\"\",\"\",サービス申込書!I65)","v":""},{"$f":"IF(サービス申込書!Y63=\"\",\"\",サービス申込書!Y63)","v":""},{"$f":"IF(サービス申込書!Y64=\"\",\"\",サービス申込書!Y64)","v":""},{"$f":"IF(サービス申込書!Y65=\"\",\"\",サービス申込書!Y65)","v":""},{"$f":"IF(サービス申込書!I66=\"■\",\"1\",IF(サービス申込書!I66=\"□\",\"2\",\"\"))","v":"2"},{"$f":"IF(サービス申込書!I67=\"\",\"\",サービス申込書!I67)","v":""},{"$f":"IF(サービス申込書!I69=\"\",\"\",サービス申込書!I69)","v":""},{"$f":"IF(サービス申込書!Y68=\"\",\"\",サービス申込書!Y68)","v":""},{"$f":"IF(サービス申込書!J70=\"\",\"\",サービス申込書!J70)","v":""},{"$f":"IF(サービス申込書!F72=\"\",\"\",サービス申込書!F72)","v":""},{"$f":"IF(サービス申込書!I72=\"\",\"\",サービス申込書!I72)","v":""},{"$f":"IF(サービス申込書!Y70=\"\",\"\",サービス申込書!Y70)","v":""},{"$f":"IF(サービス申込書!Y71=\"\",\"\",サービス申込書!Y71)","v":""},{"$f":"IF(サービス申込書!Y72=\"\",\"\",サービス申込書!Y72)","v":""},{"$f":"IF(AND(サービス申込書!I73=\"□\",サービス申込書!I74=\"□\"),\"3\",IF(サービス申込書!I73=\"■\",\"1\",IF(サービス申込書!I74=\"■\",\"2\",\"\")))","v":"3"},{"$f":"IF(サービス申込書!I75=\"\",\"\",サービス申込書!I75)","v":""},{"$f":"IF(サービス申込書!I77=\"\",\"\",サービス申込書!I77)","v":""},{"$f":"IF(サービス申込書!Y76=\"\",\"\",サービス申込書!Y76)","v":""},{"$f":"IF(サービス申込書!J78=\"\",\"\",サービス申込書!J78)","v":""},{"$f":"IF(サービス申込書!F80=\"\",\"\",サービス申込書!F80)","v":""},{"$f":"IF(サービス申込書!I80=\"\",\"\",サービス申込書!I80)","v":""},{"$f":"IF(サービス申込書!Y78=\"\",\"\",サービス申込書!Y78)","v":""},{"$f":"IF(サービス申込書!Y79=\"\",\"\",サービス申込書!Y79)","v":""},{"$f":"IF(サービス申込書!Y80=\"\",\"\",サービス申込書!Y80)","v":""},{"$f":"IF(サービス申込書!I83=\"■\",\"1\",IF(サービス申込書!P83=\"■\",\"2\",IF(サービス申込書!W83=\"■\",\"3\",\"\")))","v":""},{"$f":"IF(サービス申込書!I85=\"■\",\"1\",IF(サービス申込書!P85=\"■\",\"2\",IF(サービス申込書!W85=\"■\",\"3\",\"\")))","v":""},{"$f":"IF(サービス申込書!I86=\"■\",\"1\",IF(サービス申込書!P86=\"■\",\"2\",IF(サービス申込書!W86=\"■\",\"3\",\"\")))","v":""},null,null,null,null,null,null,null,null,null,null,null,null,null,null,null,null,null,null,null,null,null,{"$f":"IF(サービス申込書!J27=\"\",\"\",サービス申込書!J27)","v":""},{"$f":"IF(サービス申込書!L23=\"■\",\"2\",\"1\")","v":"1"},{"$f":"IF(サービス申込書!J24=\"■\",サービス申込書!Q24,\"\")","v":""},{"$f":"IF(サービス申込書!J25=\"□\",\"\",サービス申込書!Q25)&\"\"","v":""}]
[]
[]
["判定",{"$f":"IF((OR(C8=\"NG\",D8=\"NG\",E8=\"NG\",F8=\"NG\",G8=\"NG\",H8=\"NG\",I8=\"NG\",J8=\"NG\",K8=\"NG\",L8=\"NG\",M8=\"NG\",N8=\"NG\",O8=\"NG\",P8=\"NG\",Q8=\"NG\",R8=\"NG\",S8=\"NG\",T8=\"NG\",U8=\"NG\",V8=\"NG\",W8=\"NG\",X8=\"NG\",Y8=\"NG\",Z8=\"NG\",AA8=\"NG\",AB8=\"NG\",AC8=\"NG\",AD8=\"NG\",AE8=\"NG\",AF8=\"NG\",AG8=\"NG\",AH8=\"NG\",AI8=\"NG\",AJ8=\"NG\",AK8=\"NG\",AL8=\"NG\",AM8=\"NG\",AN8=\"NG\",AO8=\"NG\",AP8=\"NG\",AQ8=\"NG\",AR8=\"NG\",AS8=\"NG\",,AT8=\"NG\",AU8=\"NG\",AV8=\"NG\",AW8=\"NG\",AX8=\"NG\",AY8=\"NG\",AZ8=\"NG\",BA8=\"NG\",BB8=\"NG\",BC8=\"NG\",BD8=\"NG\",BE8=\"NG\",BC8=\"NG\",CA8=\"NG\",CB8=\"NG\",CC8=\"NG\",CD8=\"NG\")),\"NG（不足あり）\",\"OK\")","v":"NG（不足あり）"},{"$f":"IF(C5=\"\",\"NG\",\"OK\")","v":"NG"},{"$f":"IF(D5=\"\",\"NG\",\"OK\")","v":"NG"},"NG","NG","NG",{"$f":"IF(H5=\"\",\"NG\",\"OK\")","v":"NG"},{"$f":"IF(AND(H5=\"その他\",I5=\"\"),\"NG\",\"OK\")","v":"OK"},{"$f":"IF(J5=\"\",\"NG\",\"OK\")","v":"NG"},"NG","NG","NG","OK","OK","OK",{"$f":"IF(AND(P5=\"2\",Q5=\"\"),\"NG\",\"OK\")","v":"OK"},{"$f":"IF(R5=\"\",\"NG\",\"OK\")","v":"NG"},"NG","NG","NG","NG","NG","NG",{"$f":"IF(Y5=\"\",\"NG\",\"OK\")","v":"OK"},{"$f":"IF(Y5=\"1\",\"OK\",IF(Z5=\"\",\"NG\",\"OK\"))","v":"NG"},{"$f":"IF(Y5=\"1\",\"OK\",IF(AA5=\"\",\"NG\",\"OK\"))","v":"NG"},{"$f":"IF(Y5=\"1\",\"OK\",IF(AB5=\"\",\"NG\",\"OK\"))","v":"NG"},{"$f":"IF(Y5=\"1\",\"OK\",IF(AC5=\"\",\"NG\",\"OK\"))","v":"NG"},{"$f":"IF(Y5=\"1\",\"OK\",IF(AD5=\"\",\"NG\",\"OK\"))","v":"NG"},{"$f":"IF(Y5=\"1\",\"OK\",IF(AE5=\"\",\"NG\",\"OK\"))","v":"NG"},{"$f":"IF(Y5=\"1\",\"OK\",IF(AF5=\"\",\"NG\",\"OK\"))","v":"NG"},{"$f":"IF(Y5=\"1\",\"OK\",IF(G5=\"\",\"NG\",\"OK\"))","v":"NG"},{"$f":"IF(Y5=\"1\",\"OK\",IF(AH5=\"\",\"NG\",\"OK\"))","v":"NG"},{"$f":"IF(AI5=\"\",\"NG\",\"OK\")","v":"OK"},{"$f":"IF(AI5=\"1\",\"OK\",IF(AJ5=\"\",\"NG\",\"OK\"))","v":"NG"},{"$f":"IF(AI5=\"1\",\"OK\",IF(K5=\"\",\"NG\",\"OK\"))","v":"NG"},{"$f":"IF(AI5=\"1\",\"OK\",IF(AL5=\"\",\"NG\",\"OK\"))","v":"NG"},{"$f":"IF(AI5=\"1\",\"OK\",IF(AM5=\"\",\"NG\",\"OK\"))","v":"NG"},{"$f":"IF(AI5=\"1\",\"OK\",IF(AN5=\"\",\"NG\",\"OK\"))","v":"NG"},{"$f":"IF(AI5=\"1\",\"OK\",IF(AO5=\"\",\"NG\",\"OK\"))","v":"NG"},{"$f":"IF(AI5=\"1\",\"OK\",IF(AP5=\"\",\"NG\",\"OK\"))","v":"NG"},{"$f":"IF(AI5=\"1\",\"OK\",IF(AQ5=\"\",\"NG\",\"OK\"))","v":"NG"},{"$f":"IF(AI5=\"1\",\"OK\",IF(AR5=\"\",\"NG\",\"OK\"))","v":"NG"},"OK",{"$f":"IF(OR(AS5=\"1\",AS5=\"2\"),\"OK\",IF(AT5=\"\",\"NG\",\"OK\"))","v":"NG"},{"$f":"IF(OR(AS5=\"1\",AS5=\"2\"),\"OK\",IF(AU5=\"\",\"NG\",\"OK\"))","v":"NG"},{"$f":"IF(OR(AS5=\"1\",AS5=\"2\"),\"OK\",IF(AV5=\"\",\"NG\",\"OK\"))","v":"NG"},{"$f":"IF(OR(AS5=\"1\",AS5=\"2\"),\"OK\",IF(AW5=\"\",\"NG\",\"OK\"))","v":"NG"},{"$f":"IF(OR(AS5=\"1\",AS5=\"2\"),\"OK\",IF(AX5=\"\",\"NG\",\"OK\"))","v":"NG"},{"$f":"IF(OR(AS5=\"1\",AS5=\"2\"),\"OK\",IF(AY5=\"\",\"NG\",\"OK\"))","v":"NG"},{"$f":"IF(OR(AS5=\"1\",AS5=\"2\"),\"OK\",IF(AZ5=\"\",\"NG\",\"OK\"))","v":"NG"},{"$f":"IF(OR(AS5=\"1\",AS5=\"2\"),\"OK\",IF(BA5=\"\",\"NG\",\"OK\"))","v":"NG"},{"$f":"IF(OR(AS5=\"1\",AS5=\"2\"),\"OK\",IF(BB5=\"\",\"NG\",\"OK\"))","v":"NG"},"NG","NG","NG",null,null,null,null,null,null,null,null,null,null,null,null,null,null,null,null,null,null,null,null,null,{"$f":"IF(CA5=\"\",\"NG\",\"OK\")","v":"NG"},{"$f":"IF(CB5=\"\",\"NG\",\"OK\")","v":"OK"},{"$f":"IF(AND(G5=\"共同住宅等（一戸）\",CC5=\"\"),\"NG\",\"OK\")","v":"OK"},{"$f":"IF(AND(G5=\"共同住宅等（一括）\",CD5=\"\"),\"NG\",\"OK\")","v":"OK"}]
[]
[]
["　↑緑枠の判定が「OK」になっていることを確認してください."]
["　「OK」の場合は、５行目（赤枠部）を行コピーして、アクセスに貼付けてください。"]

{"sheet":"マスタ","index":2,"n_rows":49,"n_cols":1,"rows_kept":49,"cut":false,"hidden":true,"merged":[]}
["都道府県リスト"]
[]
["北海道"]
["青森県"]
["岩手県"]
["宮城県"]
["秋田県"]
["山形県"]
["福島県"]
["東京都"]
["神奈川県"]
["埼玉県"]
["千葉県"]
["茨城県"]
["栃木県"]
["群馬県"]
["山梨県"]
["新潟県"]
["長野県"]
["富山県"]
["石川県"]
["福井県"]
["愛知県"]
["岐阜県"]
["静岡県"]
["三重県"]
["大阪府"]
["兵庫県"]
["京都府"]
["滋賀県"]
["奈良県"]
["和歌山県"]
["鳥取県"]
["島根県"]
["岡山県"]
["広島県"]
["山口県"]
["徳島県"]
["香川県"]
["愛媛県"]
["高知県"]
["福岡県"]
["佐賀県"]
["長崎県"]
["熊本県"]
["大分県"]
["宮崎県"]
["鹿児島県"]
["沖縄県"]

{"sheet":"MUST","index":3,"n_rows":8,"n_cols":7,"rows_kept":8,"cut":false,"hidden":true,"merged":[]}
["活用サービス",null,null,"活用サービス"]
[null,null,null,"設計住宅性能評価","建築物省エネルギー性能表示制度_BELS評価","建設住宅性能評価＿【既存住宅の取得】の場合","その他"]
["設計住宅性能評価",null,null,"▼設計住宅性能評価（以下の基準から選択します。）","▼BELS（以下の基準から選択します。）※省エネ新基準のみ活用可能です","▼建設住宅性能評価（以下の基準から選択します。）","5-1 断熱等性能等級５以上（結露基準を除く） かつ　5-2一次エネルギー消費量等級６以上"]
["建築物省エネルギー性能表示制度_BELS評価",null,null,"5-1 断熱等性能等級４以上 または 5-2 一次エネルギー消費量等級４以上\n※省エネ旧基準のみ","5-1 断熱等性能等級５以上（結露基準を除く） かつ 5-2一次エネルギー消費量等級６以上\n※BELS評価書表面が「ZEH水準適合」 または 裏面が「誘導基準（総合判定）達成」と表示があるものに限ります。","5-1 断熱等性能等級４以上 または 5-2 一次エネルギー消費量等級４以上\n※省エネ旧基準のみ","5-1 断熱等性能等級４（結露基準を含む）以上\n※省エネ旧基準のみ"]
["建設住宅性能評価＿【既存住宅の取得】の場合",null,null,"5-1 断熱等性能等級５以上 かつ 5-2一次エネルギー消費量等級６以上","5-2一次エネルギー消費量等級４以上\n※省エネ旧基準のみ\n※BELS評価書裏面が「省エネ基準（総合判定）達成」と表示があるものに限ります。","1-1 耐震対策（倒壊等防止）等級２以上 または 1-3 その他（地震に対する構造躯体の倒壊等防止及び損傷防止）（免震建築物）","5-2 一次エネルギー消費量等級４以上\n※省エネ旧基準のみ"]
["その他",null,null,"1-1 耐震対策（倒壊等防止）等級２以上 または 1-3 その他（地震に対する構造躯体の倒壊等防止及び損傷防止）（免震建築物）",null,"9-1 高齢者等配慮対策等級（専有部分）３以上","1-1 耐震対策（倒壊等防止）等級２以上"]
[null,null,null,"9-1 高齢者等配慮対策等級（専有部分）３以上",null,null,"1-3 その他（地震に対する構造躯体の倒壊等防止及び損傷防止）（免震建築物）"]
[null,null,null,null,null,null,"9-1 高齢者等配慮対策等級（専有部分）３以上"]